fUSD/lending_fUSD_20250904
["ID","MTS","AMOUNT","RATE_DAILY","PERIOD"]
[383591459,1757013053506,-158.55659711,0.00027235,2]
[383591460,1757013053517,-250.0,0.00027235,2]
[383591461,1757013053526,-250.0,0.00027235,2]
[383591462,1757013053535,-444.0,0.0002727,2]
[383591463,1757013053545,-1000.0,0.00027285,2]
[383591464,1757013053555,-1069.55,0.000273,2]
[383591465,1757013053565,-500.0,0.00027308,2]
[383591466,1757013053574,-500.0,0.00027308,2]
[383591467,1757013053584,-3846.08,0.00027309,7]
[383591468,1757013053594,-3846.08,0.00027309,7]
[383591469,1757013053603,-1334.55982345,0.00027361,2]
[383591470,1757013053613,-400.0,0.00027363,2]
[383591471,1757013053624,-400.0,0.00027363,2]
[383591472,1757013053634,-826.61,0.00027363,2]
[383591473,1757013053643,-400.0,0.00027375,2]
[383591474,1757013053652,-400.0,0.00027376,2]
[383591475,1757013053662,-150.0,0.00027397,2]
[383591476,1757013053671,-1000.0,0.00027397,2]
[383591477,1757013053680,-1000.0,0.00027397,2]
[383591478,1757013053690,-1000.0,0.00027397,2]
[383591479,1757013053699,-1000.0,0.00027397,2]
[383591480,1757013053708,-1000.0,0.00027397,2]
[383591481,1757013053718,-1000.0,0.00027397,2]
[383591482,1757013053727,-1000.0,0.00027397,2]
[383591483,1757013053736,-1000.0,0.00027397,2]
[383591484,1757013053745,-1000.0,0.00027397,2]
[383591485,1757013053755,-1000.0,0.00027397,2]
[383591486,1757013053764,-892.00353263,0.00027397,2]
[383591487,1757013053774,-500.0,0.00027397,2]
[383591488,1757013053783,-500.0,0.00027397,2]
[383591489,1757013054111,-615.10700842,0.00027397,2]
[383591490,1757013054133,-173.91,0.00027397,80]
[383591491,1757013054152,-2122.52,0.00027397,2]
[383591492,1757013054164,-339.43,0.00027397,2]
[383591493,1757013054175,-300.0,0.00027397,2]
[383591494,1757013054185,-228.63,0.00027425,30]
[383591495,1757013054194,-357.47,0.00027429,2]
[383591496,1757013054204,-500.0,0.00027429,2]
[383591497,1757013054213,-150000.0,0.0002744,7]
[383591498,1757013054223,-1052.3584389,0.00027458,2]
[383591499,1757013054233,-165.32,0.00027461,2]
[383591500,1757013054242,-150.0,0.00027473,5]
[383591501,1757013054252,-403.21,0.00027477,2]
[383591502,1757013054261,-478.18,0.00027477,2]
[383591503,1757013054270,-400.0,0.00027477,2]
[383591504,1757013054280,-400.0,0.00027477,2]
[383591505,1757013054289,-1000.0,0.000275,2]
[383591506,1757013054299,-3846.08,0.00027583,15]
[383591507,1757013054308,-3846.08,0.00027583,15]
[383591508,1757013054319,-400.0,0.00027637,2]
[383591509,1757013054328,-400.0,0.00027637,2]
[383591510,1757013054337,-826.61,0.00027637,2]
[383591511,1757013054346,-400.0,0.00027649,2]
[383591512,1757013054355,-222.30068797,0.0002765,2]
[383591513,1757013054365,-214.0,0.0002768,30]
[383591514,1757013054375,-213.0,0.0002768,2]
[383591515,1757013054384,-203.0,0.0002768,2]
[383591516,1757013054393,-167.15,0.00027689,2]
[383591517,1757013054403,-151.0,0.00027719,2]
[383591518,1757013054412,-809.34062,0.0002774,2]
[383591519,1757013054421,-403.21,0.00027751,2]
[383591520,1757013054431,-478.18,0.00027751,2]
[383591521,1757013054441,-468.18,0.00027751,2]
[383591522,1757013054450,-400.0,0.00027751,2]
[383591523,1757013054460,-465.79,0.00027789,7]
[383591524,1757013054469,-359.76179104,0.00027793,2]
[383591525,1757013054478,-267.46074303,0.00027793,2]
[383591526,1757013054488,-1000.0,0.00027828,7]
[383591527,1757013054497,-500.0,0.00027828,7]
[383591528,1757013054506,-3846.08,0.00027857,15]
[383591529,1757013054516,-3846.08,0.00027857,15]
[383591530,1757013054525,-1191.75046216,0.00027888,2]
[383591531,1757013054535,-400.0,0.00027911,2]
[383591532,1757013054544,-514.94,0.00027911,2]
[383591533,1757013054553,-826.61,0.00027911,2]
[383591534,1757013054562,-359.2,0.00027923,2]
[383591535,1757013054571,-1087.0,0.00027939,5]
[383591536,1757013054580,-500.0,0.00027999,2]
[383591537,1757013054590,-5000.0,0.00028,2]
[383591538,1757013054599,-3010.21128815,0.00028,7]
[383591539,1757013054609,-176.99936,0.00028,2]
[383591540,1757013054619,-2218.17,0.00028,7]
[383591541,1757013054627,-22034.47,0.00028,7]
[383591542,1757013054637,-4124.25,0.00028,7]
[383591543,1757013054646,-250.0,0.00028021,5]
[383591544,1757013054655,-403.21,0.00028025,2]
[383591545,1757013054664,-478.18,0.00028025,2]
[383591546,1757013054674,-400.0,0.00028025,2]
[383591547,1757013054683,-164.65,0.00028115,2]
[383591548,1757013054692,-3846.08,0.00028131,15]
[383591549,1757013054702,-3846.08,0.00028131,15]
[383591550,1757013054713,-7768.31049991,0.00028161,30]
[383591551,1757013054722,-400.0,0.00028185,2]
[383591552,1757013054732,-826.61,0.00028185,2]
[383591553,1757013054744,-511.56,0.00028203,2]
[383591554,1757013054753,-493.33,0.00028203,2]
[383591555,1757013054762,-8760.57359776,0.00028231,9]
[383591556,1757013054771,-403.21,0.00028299,2]
[383591557,1757013054781,-478.18,0.00028299,2]
[383591558,1757013054790,-400.0,0.00028299,2]
[383591559,1757013054799,-214.0,0.0002837,30]
[383591560,1757013054808,-213.0,0.0002837,2]
[383591561,1757013054817,-203.0,0.0002837,2]
[383591562,1757013054826,-151.0,0.00028376,3]
[383591563,1757013054836,-1500.0,0.000284,2]
[383591564,1757013054846,-3846.08,0.00028405,15]
[383591565,1757013054857,-3846.08,0.00028405,15]
[383591566,1757013054868,-435.0,0.0002845,2]
[383591567,1757013054878,-400.0,0.00028459,2]
[383591568,1757013054888,-826.61,0.00028459,2]
[383591569,1757013054898,-350.0,0.00028568,5]
[383591570,1757013054907,-403.21,0.00028573,2]
[383591571,1757013054917,-478.18,0.00028573,2]
[383591572,1757013054926,-240.48,0.00028573,2]
[383591573,1757013054935,-1069.55,0.000286,30]
[383591574,1757013054944,-150.0,0.00028605,2]
[383591575,1757013054955,-1000.0,0.0002865,7]
[383591576,1757013054965,-500.0,0.0002865,7]
[383591577,1757013054975,-500.0,0.0002865,7]
[383591578,1757013054984,-3846.08,0.00028679,15]
[383591579,1757013054994,-3846.08,0.00028679,15]
[383591580,1757013055004,-5086.02,0.000287,2]
[383591581,1757013055014,-232.66220684,0.00028733,2]
[383591582,1757013055024,-826.61,0.00028733,2]
[383591583,1757013055033,-809.34062,0.0002874,2]
[383591584,1757013055043,-248.0,0.00028756,14]
[383591585,1757013055052,-150.0,0.00028767,2]
[383591586,1757013055062,-194.03995453,0.0002878,2]
[383591587,1757013055071,-453.38092512,0.0002878,2]
[383591588,1757013055081,-351.30805354,0.0002878,5]
[383591589,1757013055090,-1491.45887903,0.0002878,2]
[383591590,1757013055100,-6837.68094422,0.0002878,2]
[383591591,1757013055109,-12429.86466238,0.000288,2]
[383591592,1757013055118,-1800.0,0.000288,10]
[383591593,1757013055129,-403.21,0.00028847,2]
[383591594,1757013055139,-478.18,0.00028847,2]
[383591595,1757013055149,-150.0,0.00028851,2]
[383591596,1757013055160,-532.99234464,0.00028853,2]
[383591597,1757013055170,-679.30396866,0.00028855,2]
[383591598,1757013055180,-825.61559268,0.00028857,2]
[383591599,1757013055190,-971.9272167,0.0002886,2]
[383591600,1757013055199,-940.3030633,0.0002886,2]
[383591601,1757013055209,-828.2476877,0.0002886,2]
[383591602,1757013055219,-716.1923121,0.0002886,2]
[383591603,1757013055229,-604.1369365,0.0002886,2]
[383591604,1757013055239,-1118.23884072,0.00028862,2]
[383591605,1757013055249,-1264.55046473,0.00028864,2]
[383591606,1757013055259,-1410.86208875,0.00028866,2]
[383591607,1757013055269,-1557.17371277,0.00028868,2]
[383591608,1757013055279,-1703.48533679,0.0002887,2]
[383591609,1757013055289,-728.06645604,0.0002887,2]
[383591610,1757013055299,-500.0,0.00028879,2]
[383591611,1757013055308,-500.0,0.00028879,2]
[383591612,1757013055318,-500.0,0.00028879,2]
[383591613,1757013055328,-500.0,0.00028879,2]
[383591614,1757013055340,-500.0,0.00028879,2]
[383591615,1757013055350,-500.0,0.00028879,2]
[383591616,1757013055359,-500.0,0.00028879,2]
[383591617,1757013055369,-500.0,0.00028879,2]
[383591618,1757013055378,-500.0,0.00028879,2]
[383591619,1757013055389,-234.5,0.00028879,2]
[383591620,1757013055399,-19733.05688235,0.0002888,3]
[383591621,1757013055408,-472915.10747906,0.0002888,2]
[383591622,1757013055600,-401.12355274,0.00023537,2]
[383591623,1757013055609,-250.62749416,0.0002878,2]
[383591624,1757013055619,-29325.65512087,0.0002888,2]
[383591625,1757013055631,-734.91204161,0.0002888,2]
[383591626,1757013055643,-1010891.07383698,0.0002888,2]
[383591627,1757013055714,-400.0,0.00023537,2]
[383591628,1757013055724,-656.8411327,0.00024913,2]
[383591629,1757013055734,-543.15990721,0.0002888,2]
[383591630,1757013055746,-2853.8851233,0.0002888,2]
[383591631,1757013055758,-4279.3209,0.0002888,2]
[383591633,1757013163655,200.0,0.0003013,120]
[383591641,1757013376746,169.19,0.00012429,2]
[383591642,1757013771564,153.45,0.00013699,2]
[383591643,1757013861294,210.32,0.00025005,120]
[383591734,1757014231436,-256.96969189,0.00020553,2]
[383591735,1757014231494,-243.03030811,0.00020553,2]
[383591736,1757014231503,-500.0,0.00020553,2]
[383591737,1757014231513,-403.54818701,0.00020553,2]
[383591738,1757014231523,-764.0,0.00020554,2]
[383591739,1757014231532,-1200.0,0.00020554,2]
[383591740,1757014231542,-349.0370476,0.00020554,2]
[383591741,1757014231552,-3315.56673454,0.00020555,2]
[383591742,1757014231563,-1242.43109847,0.00020555,2]
[383591743,1757014231605,-738.63525514,0.00020555,2]
[383591744,1757014231620,-8325.62550759,0.00020555,2]
[383591745,1757014231664,-736.10458465,0.00020555,2]
[383591746,1757014231675,-190.23788931,0.00020851,2]
[383591747,1757014231685,-153.45,0.00020951,2]
[383591748,1757014231694,-166.47344729,0.000219,2]
[383591749,1757014231703,-151.043826,0.00021917,2]
[383591750,1757014231713,-151.043826,0.00021917,2]
[383591751,1757014231723,-164.480443,0.00021917,2]
[383591753,1757014231733,-164.480443,0.00021917,2]
[383591755,1757014231742,-250.685236,0.00021917,2]
[383591757,1757014231751,-173.202325,0.00021917,2]
[383591759,1757014231761,-173.202325,0.00021917,2]
[383591761,1757014231770,-133.98422312,0.00021917,2]
[383591764,1757014231782,-39.21810188,0.00021917,2]
[383591766,1757014231791,-191.26,0.00022,2]
[383591768,1757014231800,-186.73428947,0.00022,2]
[383591770,1757014231809,-173.202325,0.00022191,2]
[383591772,1757014231819,-1680.0,0.00022475,2]
[383591774,1757014231828,-151.0,0.00022633,2]
[383591776,1757014231837,-151.0,0.00022659,2]
[383591778,1757014231847,-151.0,0.00022691,2]
[383591779,1757014231856,-151.0,0.00022727,2]
[383591781,1757014231866,-1020.72196738,0.00023,2]
[383591783,1757014231875,-195.0,0.00023046,2]
[383591785,1757014231887,-3010.21128815,0.000234,2]
[383591786,1757014231896,-339.17553123,0.00023524,2]
[383591787,1757014231905,-359.2,0.00023537,2]
[383591788,1757014231915,-401.60073471,0.00023538,2]
[383591789,1757014231925,-401.23814586,0.00023538,2]
[383591790,1757014231935,-400.0,0.00023538,2]
[383591791,1757014231944,-401.22122391,0.00023538,2]
[383591792,1757014231953,-400.0,0.00023538,2]
[383591793,1757014231963,-400.0,0.00023538,2]
[383591794,1757014231972,-400.0,0.00023538,2]
[383591795,1757014231982,-400.0,0.00023538,2]
[383591797,1757014231991,-401.32141432,0.00023538,2]
[383591799,1757014232000,-400.0,0.00023538,2]
[383591801,1757014232009,-400.0,0.00023538,2]
[383591803,1757014232019,-401.13079499,0.00023538,2]
[383591805,1757014232028,-400.0,0.00023538,2]
[383591807,1757014232038,-400.0,0.00023538,2]
[383591809,1757014232047,-407.5142146,0.00023538,2]
[383591810,1757014232056,-400.0,0.00023538,2]
[383591812,1757014232066,-400.0,0.00023538,2]
[383591814,1757014232075,-400.0,0.00023538,2]
[383591816,1757014232083,-400.0,0.00023538,2]
[383591817,1757014232091,-400.0,0.00023538,2]
[383591819,1757014232100,-400.0,0.00023538,2]
[383591821,1757014232110,-400.0,0.00023538,2]
[383591822,1757014232119,-400.0,0.00023538,2]
[383591823,1757014232128,-401.29887594,0.00023538,2]
[383591824,1757014232137,-724.71254227,0.00023753,2]
[383591825,1757014232146,-514.64478986,0.00023988,2]
[383591826,1757014232155,-160.0,0.00023988,2]
[383591827,1757014232164,-212.59699798,0.00023988,2]
[383591828,1757014232174,-160.0,0.00023988,2]
[383591829,1757014232184,-5000.00486619,0.00024,5]
[383591830,1757014232193,-623.58710448,0.00024153,2]
[383591831,1757014232203,-1234.40227726,0.00024153,2]
[383591832,1757014232212,-151.0,0.00024153,2]
[383591833,1757014232222,-322.6107,0.00024153,2]
[383591834,1757014232231,-1000.0,0.00024153,2]
[383591835,1757014232240,-399.56199263,0.00024153,2]
[383591836,1757014232249,-1058.70373802,0.00024153,2]
[383591837,1757014232259,-239.84119403,0.00024153,2]
[383591838,1757014232268,-2351.0,0.00024576,2]
[383591839,1757014232278,-400.0,0.00024657,2]
[383591840,1757014232287,-203.65,0.00024658,2]
[383591841,1757014232296,-793.9269647,0.00024771,2]
[383591842,1757014232305,-567.0,0.00024781,2]
[383591843,1757014232315,-600.0,0.00024781,2]
[383591844,1757014232324,-1300.0,0.00024781,2]
[383591845,1757014232343,-1577.0,0.00024781,2]
[383591846,1757014232353,-811.0,0.00024781,2]
[383591847,1757014232363,-896.0,0.00024781,2]
[383591848,1757014232372,-1175.0,0.00024781,2]
[383591849,1757014232382,-2035.0,0.00024781,2]
[383591850,1757014232391,-924.0,0.00024781,2]
[383591851,1757014232401,-6163.0,0.00024781,2]
[383591852,1757014232411,-1258.0,0.00024781,2]
[383591853,1757014232420,-250.0,0.00024788,2]
[383591854,1757014232430,-159.81,0.00024815,2]
[383591855,1757014232440,-7884.5162381,0.000249,2]
[383591856,1757014232449,-160.0,0.00024922,7]
[383591857,1757014232457,-178.22,0.00024959,2]
[383591858,1757014232466,-5675.38,0.00025,7]
[383591859,1757014232475,-995.66,0.00025,7]
[383591860,1757014232483,-1881.99999997,0.00025,7]
[383591861,1757014232492,-162.73,0.00025,7]
[383591862,1757014232501,-386.53,0.00025,7]
[383591863,1757014232510,-200.0,0.00025058,2]
[383591864,1757014232519,-260.65,0.00025071,2]
[383591865,1757014232529,-3040.01565555,0.00025252,2]
[383591866,1757014232538,-666.0,0.0002526,3]
[383591867,1757014232546,-217.99,0.00025421,2]
[383591868,1757014232555,-334.5472959,0.00025522,2]
[383591869,1757014232563,-248.71531821,0.00025522,2]
[383591870,1757014232572,-150.0,0.00025792,4]
[383591871,1757014232581,-150.0,0.00025792,4]
[383591872,1757014232592,-150.0,0.00025792,4]
[383591873,1757014232602,-150.0,0.00025792,4]
[383591874,1757014232610,-150.0,0.00025792,4]
[383591875,1757014232619,-150.0,0.00025792,4]
[383591876,1757014232626,-1602.53,0.00025808,7]
[383591877,1757014232636,-1602.53,0.00025808,7]
[383591878,1757014232646,-1602.53,0.00025808,7]
[383591879,1757014232655,-1602.53,0.00025808,7]
[383591880,1757014232666,-150.49,0.00025976,2]
[383591881,1757014232677,-2000.0,0.00026,2]
[383591882,1757014232687,-2201.70145486,0.00026,7]
[383591883,1757014232727,-3473.67854514,0.00026,7]
[383591884,1757014232737,-1069.55,0.00026,2]
[383591885,1757014232747,-995.66,0.00026,7]
[383591886,1757014232756,-212.59699798,0.00026,7]
[383591887,1757014232766,-7884.51623798,0.0002601,4]
[383591888,1757014232776,-1602.53,0.00026082,7]
[383591889,1757014232786,-1602.53,0.00026082,7]
[383591890,1757014232795,-178.22,0.00026206,2]
[383591891,1757014232805,-1602.53,0.00026356,7]
[383591892,1757014232815,-1602.53,0.00026356,7]
[383591893,1757014232825,-426.0,0.000265,2]
[383591894,1757014232834,-162.73,0.00026556,7]
[383591895,1757014232843,-386.53,0.00026556,7]
[383591896,1757014232853,-520.881,0.00026594,13]
[383591897,1757014232863,-1602.53,0.0002663,7]
[383591898,1757014232873,-1602.53,0.0002663,7]
[383591899,1757014232883,-500.0,0.00026732,2]
[383591900,1757014232892,-500.0,0.00026732,2]
[383591901,1757014232902,-1000.0,0.00026732,2]
[383591902,1757014232911,-3292.0,0.00026873,2]
[383591903,1757014232922,-202.81541416,0.00026891,2]
[383591904,1757014232932,-257.91778498,0.00026891,2]
[383591905,1757014232942,-646.65982734,0.00026892,2]
[383591906,1757014232951,-1602.53,0.00026904,7]
[383591907,1757014232960,-1602.53,0.00026904,7]
[383591908,1757014232970,-5675.38,0.00027,7]
[383591909,1757014232980,-995.66,0.00027,7]
[383591910,1757014232989,-496.8215,0.00027021,2]
[383591911,1757014232998,-3830.2568,0.00027021,2]
[383591912,1757014233007,-801.33,0.00027116,2]
[383591913,1757014233017,-3010.21128815,0.00027121,7]
[383591914,1757014233027,-7884.51623798,0.00027121,7]
[383591915,1757014233038,-1602.53,0.00027178,7]
[383591916,1757014233048,-1602.53,0.00027178,7]
[383591917,1757014233058,-200.0,0.00027235,2]
[383591918,1757014233069,-500.0,0.00027235,2]
[383591919,1757014233079,-150.0,0.00027235,2]
[383591920,1757014233089,-150.0,0.00027235,2]
[383591921,1757014233099,-150.0,0.00027235,2]
[383591922,1757014233108,-150.0,0.00027235,2]
[383591923,1757014233118,-150.0,0.00027235,2]
[383591924,1757014233129,-150.0,0.00027235,2]
[383591925,1757014233139,-150.0,0.00027235,2]
[383591926,1757014233149,-150.0,0.00027235,2]
[383591927,1757014233159,-158.55659711,0.00027235,2]
[383591928,1757014233177,-150.0,0.00027235,2]
[383591929,1757014233189,-150.0,0.00027235,2]
[383591930,1757014233201,-150.0,0.00027235,2]
[383591931,1757014233213,-150.0,0.00027235,2]
[383591932,1757014233227,-500.0,0.00027235,2]
[383591933,1757014233240,-150.0,0.00027235,2]
[383591934,1757014233252,-1069.55,0.000273,2]
[383591935,1757014233263,-150.49,0.00027346,2]
[383591936,1757014233275,-500.0,0.00027397,2]
[383591937,1757014233286,-500.0,0.00027397,2]
[383591938,1757014233297,-615.10700842,0.00027397,2]
[383591939,1757014233308,-173.91,0.00027397,80]
[383591940,1757014233320,-300.0,0.00027397,2]
[383591941,1757014233330,-2122.52,0.00027397,2]
[383591942,1757014233341,-209.57,0.00027425,30]
[383591943,1757014233354,-1602.53,0.00027452,15]
[383591944,1757014233366,-1602.53,0.00027452,15]
[383591945,1757014233377,-178.22,0.00027454,2]
[383591946,1757014233389,-203.65,0.00027468,2]
[383591947,1757014233400,-634.0,0.00027509,2]
[383591948,1757014233412,-150.0,0.00027509,2]
[383591949,1757014233423,-150.0,0.00027509,2]
[383591950,1757014233435,-170.0,0.00027509,2]
[383591951,1757014233446,-150.0,0.00027509,2]
[383591952,1757014233458,-150.0,0.00027509,2]
[383591953,1757014233470,-286.99789271,0.00027509,2]
[383591954,1757014233481,-150.0,0.00027509,2]
[383591955,1757014233493,-150.0,0.00027509,2]
[383591956,1757014233504,-150.0,0.00027509,2]
[383591957,1757014233516,-510.0,0.00027509,2]
[383591958,1757014233527,-150.0,0.00027509,2]
[383591959,1757014233539,-418.0,0.0002768,2]
[383591960,1757014233550,-1000.0,0.00027681,2]
[383591961,1757014233563,-1080.2,0.0002769,2]
[383591962,1757014233574,-150.0,0.0002769,2]
[383591963,1757014233585,-173.9,0.0002769,2]
[383591964,1757014233599,-300.0,0.0002769,2]
[383591965,1757014233611,-150.0,0.0002769,2]
[383591966,1757014233622,-150.0,0.0002769,2]
[383591967,1757014233633,-1602.53,0.00027726,15]
[383591968,1757014233643,-1602.53,0.00027726,15]
[383591969,1757014233654,-567.0,0.00027781,2]
[383591970,1757014233667,-600.0,0.00027781,2]
[383591971,1757014233681,-1300.0,0.00027781,2]
[383591972,1757014233692,-1577.0,0.00027781,2]
[383591973,1757014233703,-811.0,0.00027781,2]
[383591974,1757014233714,-896.0,0.00027781,2]
[383591975,1757014233725,-1175.0,0.00027781,2]
[383591976,1757014233736,-2035.0,0.00027781,2]
[383591977,1757014233747,-924.0,0.00027781,2]
[383591978,1757014233759,-6163.0,0.00027781,2]
[383591979,1757014233770,-1258.0,0.00027781,2]
[383591980,1757014233782,-150.0,0.00027783,2]
[383591981,1757014233794,-200.0,0.00027783,2]
[383591982,1757014233805,-150.0,0.00027783,2]
[383591983,1757014233818,-150.0,0.00027783,2]
[383591984,1757014233830,-500.0,0.00027828,7]
[383591985,1757014233846,-1000.0,0.00027828,7]
[383591986,1757014233858,-151.0,0.00027828,2]
[383591987,1757014233869,-420.88,0.0002799,2]
[383591988,1757014233882,-400.0,0.00027999,2]
[383591989,1757014233894,-400.0,0.00027999,2]
[383591990,1757014233905,-400.0,0.00027999,2]
[383591991,1757014233916,-400.0,0.00027999,2]
[383591992,1757014233927,-400.0,0.00027999,2]
[383591993,1757014233940,-400.0,0.00027999,2]
[383591994,1757014233954,-400.0,0.00027999,2]
[383591995,1757014233965,-400.0,0.00027999,2]
[383591996,1757014233976,-400.0,0.00027999,2]
[383591997,1757014233987,-400.0,0.00027999,2]
[383591998,1757014233999,-401.08365881,0.00027999,2]
[383591999,1757014234010,-400.0,0.00027999,2]
[383592000,1757014234021,-400.0,0.00027999,2]
[383592001,1757014234033,-400.0,0.00027999,2]
[383592002,1757014234044,-400.0,0.00027999,2]
[383592003,1757014234057,-400.0,0.00027999,2]
[383592004,1757014234069,-400.0,0.00027999,2]
[383592005,1757014234079,-400.0,0.00027999,2]
[383592006,1757014234090,-1602.53,0.00028,15]
[383592007,1757014234101,-1602.53,0.00028,15]
[383592008,1757014234112,-20939.76569657,0.00028,2]
[383592009,1757014234124,-5675.38,0.00028,7]
[383592010,1757014234136,-995.66,0.00028,7]
[383592011,1757014234147,-212.59699798,0.00028,7]
[383592012,1757014234160,-150.0,0.00028057,2]
[383592013,1757014234174,-150.0,0.00028057,2]
[383592014,1757014234188,-150.0,0.00028057,2]
[383592015,1757014234200,-162.73,0.00028106,30]
[383592016,1757014234212,-386.53,0.00028106,30]
[383592017,1757014234224,-801.33,0.00028133,2]
[383592018,1757014234236,-259.89,0.00028203,10]
[383592019,1757014234249,-3538.0,0.00028203,2]
[383592020,1757014234261,-382.61,0.00028203,2]
[383592021,1757014234273,-511.56,0.00028203,2]
[383592022,1757014234288,-493.33,0.00028203,2]
[383592023,1757014234299,-153.45,0.00028203,2]
[383592024,1757014234310,-7884.51623798,0.00028231,9]
[383592025,1757014234321,-267.46074303,0.0002826,2]
[383592026,1757014234331,-168.0,0.00028263,2]
[383592027,1757014234342,-495.76,0.00028273,2]
[383592028,1757014234352,-400.0,0.00028273,2]
[383592029,1757014234362,-400.0,0.00028273,2]
[383592030,1757014234374,-400.0,0.00028273,2]
[383592031,1757014234385,-400.0,0.00028273,2]
[383592032,1757014234397,-400.0,0.00028273,2]
[383592033,1757014234409,-400.0,0.00028273,2]
[383592034,1757014234420,-400.0,0.00028273,2]
[383592035,1757014234432,-400.0,0.00028273,2]
[383592036,1757014234445,-400.0,0.00028273,2]
[383592037,1757014234456,-400.0,0.00028273,2]
[383592038,1757014234468,-400.0,0.00028273,2]
[383592039,1757014234479,-400.0,0.00028273,2]
[383592040,1757014234490,-1602.53,0.00028274,15]
[383592041,1757014234501,-1602.53,0.00028274,15]
[383592042,1757014234512,-200.0,0.00028331,2]
[383592043,1757014234524,-150.0,0.00028331,2]
[383592044,1757014234534,-150.0,0.00028331,2]
[383592045,1757014234545,-1468.0,0.000284,5]
[383592046,1757014234556,-4103.14,0.000284,2]
[383592047,1757014234567,-151.0,0.00028449,3]
[383592048,1757014234577,-2500.0,0.000285,2]
[383592049,1757014234588,-531.97022474,0.00028505,2]
[383592050,1757014234605,-205.90790164,0.00028505,2]
[383592051,1757014234616,-827.47162005,0.00028506,2]
[383592052,1757014234628,-420.88,0.00028538,2]
[383592053,1757014234642,-514.9,0.00028547,2]
[383592054,1757014234652,-309.88,0.00028547,2]
[383592055,1757014234664,-204.92,0.00028547,2]
[383592056,1757014234675,-1602.53,0.00028548,15]
[383592057,1757014234686,-1602.53,0.00028548,15]
[383592058,1757014234696,-500.0,0.00028573,5]
[383592059,1757014234706,-500.0,0.00028573,5]
[383592060,1757014234716,-500.0,0.00028573,5]
[383592061,1757014234725,-500.0,0.00028573,5]
[383592062,1757014234735,-500.0,0.00028573,5]
[383592063,1757014234749,-500.0,0.00028573,5]
[383592064,1757014234759,-500.0,0.00028573,5]
[383592065,1757014234770,-500.0,0.00028573,5]
[383592066,1757014234780,-500.0,0.00028573,5]
[383592067,1757014234790,-159.43299474,0.00028579,2]
[383592068,1757014234802,-23936.4580653,0.0002859,3]
[383592069,1757014234813,-420.88,0.0002859,2]
[383592070,1757014234824,-420.88,0.0002859,2]
[383592071,1757014234835,-400.0,0.00028599,2]
[383592072,1757014234846,-400.0,0.00028599,2]
[383592073,1757014234857,-400.0,0.00028599,2]
[383592074,1757014234868,-400.0,0.00028599,2]
[383592075,1757014234879,-400.0,0.00028599,2]
[383592076,1757014234890,-400.0,0.00028599,2]
[383592077,1757014234901,-400.0,0.00028599,2]
[383592078,1757014234912,-400.0,0.00028599,2]
[383592079,1757014234922,-161.16016956,0.00028599,2]
[383592080,1757014234938,-238.83983044,0.00028599,2]
[383592081,1757014234949,-400.0,0.00028599,2]
[383592082,1757014234959,-339.75271754,0.00028599,2]
[383592085,1757014237405,-244.32593333,0.00020552,2]
[383592086,1757014237416,-724.6700738,0.00024781,2]
[383592087,1757014237517,-753.0950403,0.00024781,2]